[Event "ETCC Open 2023"]
[Site "Budva"]
[Date "2023.11.11"]
[Round "1.52"]
[White "Stalmach, Richard"]
[Black "Veljanoski, Andrej"]
[Result "1-0"]
[ECO "D46"]
[WhiteElo "2420"]
[BlackElo "2289"]
[Annotator "RC"]
[PlyCount "99"]
[EventDate "2023.11.10"]
[EventType "team-tourn"]
[EventCountry "MNE"]
[SourceTitle "playchess.com"]
[Source "ChessBase"]
[SourceQuality "1"]
[WhiteTeam "Czech Republic"]
[BlackTeam "Macedonia"]
[WhiteTeamCountry "CZE"]
[BlackTeamCountry "MKD"]
[TimeControl "40/5400+30:1800+30"]

1. d4 {[%emt 0:00:06]} d5 {[%emt 0:00:44]} 2. c4 {[%emt 0:00:23]} e6 {[%emt 0:00:06]} 3. Nc3 {[%emt 0:00:38]} Nf6 {[%emt 0:00:10]} 4. Nf3 {[%emt 0:00:32]} c6 {[%emt 0:00:55]} 5. e3 {[%emt 0:03:04]} Nbd7 {[%emt 0:00:58]} 6. Qc2 {[%emt 0:00:28]} Bd6 {[%emt 0:00:35]} 7. Bd3 {[%emt 0:00:09]} dxc4 {[%emt 0:00:23]} 8. Bxc4 {[%emt 0:00:05]} b5 {[%emt 0:00:30]} 9. Bd3 {[%emt 0:00:18]} Bb7 {[%emt 0:00:43]} 10. O-O {[%emt 0:00:23]} O-O {[%emt 0:00:08]} 11. e4 {[%emt 0:00:35]} e5 {[%emt 0:00:21]} 12. h3 {[%emt 0:00:20]} a6 {[%emt 0:02:58]} 13. dxe5 {[%emt 0:02:22]} Nxe5 {[%emt 0:01:01]} 14. Nxe5 {[%emt 0:00:07]} Bxe5 {[%emt 0:00:06]} 15. Be3 {[%emt 0:00:32]} Re8 {[%emt 0:00:28]} 16. f4 {[%emt 0:03:14]} Bxc3 {[%emt 0:01:09]} 17. bxc3 {[%emt 0:01:07]} c5 {[%emt 0:00:12]} 18. e5 {[%emt 0:00:06]} c4 {[%emt 0:00:12]} 19. Be2 {[%emt 0:00:15]} Be4 {[%emt 0:05:21]} 20. Qb2 {[%emt 0:00:54]} Nd5 {[%emt 0:04:08]} 21. Bd4 {[%emt 0:00:24]} Qc7 {[%emt 0:20:01]} 22. a3 {[%emt 0:11:40]} f6 {[%emt 0:03:18]} 23. Rae1 {[%emt 0:06:54]} fxe5 {[%emt 0:26:40]} 24. fxe5 {[%emt 0:05:28]} Qc6 {[%emt 0:01:16]} 25. Bg4 {[%emt 0:10:32]} Nc7 {[%emt 0:00:58]} 26. Rf4 {[%emt 0:12:50]} Bd5 {[%emt 0:01:20]} 27. Bf5 {[%emt 0:04:37]} Ne6 {[%emt 0:10:21]} 28. Rh4 {[%emt 0:02:06]} g6 {[%emt 0:06:27]} 29. Bxe6+ {[%emt 0:00:19]} Qxe6 {[%emt 0:02:19]} 30. Bc5 {[%emt 0:00:10]} Rad8 {[%emt 0:02:27]} 31. Rf4 {[%emt 0:05:32]} Qc6 {[%emt 0:01:04]} 32. Qf2 {[%emt 0:02:02]} Be6 {[%emt 0:03:42]} 33. Bd6 {[%emt 0:01:22]} Qd7 {[%emt 0:00:15]} 34. Rf1 {[%emt 0:01:20]} Ra8 {[%emt 0:02:32]} 35. Kh2 {[%emt 0:00:24]} Qg7 {[%emt 0:01:02]} 36. Rf6 {[%emt 0:00:48]} Qb7 {[%emt 0:01:25]} 37. h4 {[%emt 0:02:55]} Qg7 {[%emt 0:01:31]} 38. Qf3 {[%emt 0:02:13]} Rac8 {[%emt 0:00:12]} 39. g4 {[%emt 0:05:23]} Kh8 {[%emt 0:01:14]} 40. Qf4 {[%emt 0:01:18]} Rcd8 {[%emt 0:00:37]} 41. Rg1 {[%emt 0:33:45]} Qd7 {[%emt 0:04:57]} 42. Rg3 {[%emt 0:00:00]} a5 {[%emt 0:02:55]} 43. Qh6 {[%emt 0:00:00]} Qg7 {[%emt 0:02:57]} 44. Qg5 {[%emt 0:00:00]} b4 {[%emt 0:05:07]} 45. Rxe6 {[%emt 0:00:00]} b3 {[%emt 0:02:43]} 46. Rg2 {[%emt 0:00:00]} Qb7 {[%emt 0:01:58]} 47. Qf6+ {[%emt 0:00:00]} Kg8 {[%emt 0:00:04]} 48. Rxe8+ {[%emt 0:00:00]} Rxe8 {[%emt 0:00:07]} 49. e6 {[%emt 0:00:00]} b2 {[%emt 0:00:07]} 50. Be5 {[%emt 0:00:00]} 1-0

[Event "ETCC Open 2023"]
[Site "Budva"]
[Date "2023.11.11"]
[Round "1.53"]
[White "Brkic, Ante"]
[Black "Pasko, Llambi"]
[Result "1-0"]
[ECO "C77"]
[WhiteElo "2622"]
[BlackElo "2395"]
[Annotator "TA"]
[PlyCount "93"]
[EventDate "2023.11.10"]
[EventType "team-tourn"]
[EventCountry "MNE"]
[SourceTitle "playchess.com"]
[Source "ChessBase"]
[SourceQuality "1"]
[WhiteTeam "Croatia"]
[BlackTeam "Albania"]
[WhiteTeamCountry "CRO"]
[BlackTeamCountry "ALB"]
[TimeControl "40/5400+30:1800+30"]

{[%evp 13,93,20,23,23,29,21,27,27,38,43,36,17,31,9,33,0,18,-22,14,0,0,7,2,0,22,0,0,0,20,-16,0,-19,8,15,22,0,18,0,39,0,48,34,112,106,121,42,127,0,0,0,0,0,0,6,10,7,62,67,95,64,156,154,227,210,207,192,272,173,258,165,184,154,156,145,392,377,643,532,879,822,1641,1518]} 1. e4 {[%emt 0:00:02]} e5 {[%emt 0:00:10]} 2. Nf3 {[%emt 0:00:04]} Nc6 {[%emt 0:00:10]} 3. Bb5 {[%emt 0:00:06]} a6 {[%emt 0:00:39]} 4. Ba4 {[%emt 0:00:06]} Nf6 {[%emt 0:00:15]} 5. d3 {[%emt 0:00:21]} b5 {[%emt 0:00:41]} 6. Bb3 {[%emt 0:00:06]} Bc5 {[%emt 0:01:16]} 7. c3 {[%emt 0:00:12]} d6 {[%emt 0:00:40]} 8. Bg5 $1 {[%emt 0:00:22][%mdl 4] outshines the older 8.0-0. C77: Ruy Lopez: 3...a6 4 Ba4 Nf6, unusual lines.} h6 {[%emt 0:04:20]} 9. Bh4 {[%emt 0:00:54]} O-O {[%emt 0:02:51]} 10. O-O {[%emt 0:02:39] White has an edge.} Bb6 {[%emt 0:11:39]} 11. a4 {[%emt 0:02:02]} Rb8 {[%emt 0:00:17]} 12. Nbd2 {[%emt 0:00:26]} g5 {[%emt 0:01:38]} 13. Bg3 {[%emt 0:01:06]} Bg4 {[%emt 0:01:03] [#]} 14. Kh1 $146 {[%emt 0:14:47]} ({Predecessor:} 14. axb5 axb5 15. h3 Bh5 16. Re1 Qd7 17. Nf1 Ra8 18. Rc1 Kg7 19. Ne3 Bxe3 20. Rxe3 {½-½ Grischuk,A (2736)-Tomashevsky,E (2694) Moscow Stars Prelim 19th rapid 2023 (1)}) 14... Ne7 {[%emt 0:08:08]} 15. d4 {[%emt 0:32:38]} Ng6 {[%emt 0:04:50]} 16. h3 {[%emt 0:06:56]} Bh5 {[%emt 0:02:01]} 17. Qc2 {[%emt 0:00:17][%cal Rd4e5]} Qe7 {[%emt 0:01:22]} 18. Rfe1 {[%emt 0:00:39]} Kh8 {[%emt 0:20:21]} 19. axb5 {[%emt 0:03:13]} axb5 {[%emt 0:00:24]} 20. Qd3 {[%emt 0:00:02]} Rfd8 {[%emt 0:07:02]} 21. Ba2 {[%emt 0:11:56]} c6 {[%emt 0:06:36]} 22. Bb3 {[%emt 0:00:44]} Rg8 {[%emt 0:03:50]} 23. Bd1 {[%emt 0:07:31]} Qe6 {[%emt 0:02:39]} 24. Bb3 {[%emt 0:01:12]} (24. Ra6 {keeps more tension.} Nf4 25. Bxf4 exf4 26. e5) 24... Qe7 {[%emt 0:00:06]} 25. Bd1 {[%emt 0:00:01]} Qe6 {[%emt 0:00:08]} 26. Nf1 {[%emt 0:02:19][%cal Bd2f1,Bf1e3,Be3f5][%mdl 32]} g4 {[%emt 0:04:17]} (26... Ra8 $11 {is more appropriate.} 27. Rxa8 Rxa8) 27. hxg4 {[%emt 0:00:05]} Nxg4 {[%emt 0:00:58]} (27... Bxg4 $14 28. N1h2 Nh5) 28. Qd2 $16 {[%emt 0:03:43]} Kh7 {[%emt 0:06:08]} 29. N3h2 {[%emt 0:01:16]} ({White should try} 29. Ng1 $16) 29... Nf6 {[%emt 0:00:46]} ({Better is} 29... Nxh2 $1 $14 30. Nxh2 (30. Bxh5 Nxf1 31. Rxf1 exd4 $11) 30... Bxd1 31. Rexd1 Ra8) 30. Bxh5 {[%emt 0:01:10]} (30. Bc2 $16) 30... Nxh5 $11 {[%emt 0:00:06]} 31. Ne3 {[%emt 0:00:09]} Ne7 {[%emt 0:07:51]} 32. Bh4 {[%emt 0:00:12]} Ng6 $1 {[%emt 0:00:08]} 33. Nf5 {[%emt 0:01:52][%csl Gf5][%cal Rd2h6] [#]} Nxh4 {[%emt 0:00:15]} 34. Nxh4 {[%emt 0:00:08]} Bd8 {[%emt 0:02:13]} (34... b4 $11) 35. Nf5 $1 $14 {[%emt 0:00:35]} Bg5 {[%emt 0:00:06]} 36. Qe2 {[%emt 0:02:07]} (36. Qc2 {simplifies} exd4 37. Nxd4 Qg6 38. g3) 36... Nf4 {[%emt 0:01:42]} (36... Ng7 $14) 37. Qf3 $16 {[%emt 0:00:12] aiming for g3.} d5 {[%emt 0:00:41]} (37... Nxg2 $16 38. Qxg2 Bd2) 38. g3 {[%emt 0:00:33]} Ng6 {[%emt 0:00:38]} 39. Ng4 {[%emt 0:01:55]} exd4 {[%emt 0:00:31]} (39... Ra8 $142 40. Rad1 dxe4 41. Qxe4 (41. Rxe4 Bf4 $18) 41... exd4) 40. cxd4 {[%emt 0:02:14][%cal Of5h6] [#] Black must now prevent Nfxh6!} Rbe8 {[%emt 0:00:32]} (40... Ra8 {was called for.} 41. exd5 Rxa1 42. Rxa1 cxd5) 41. e5 {[%emt 0:04:22]} Ne7 {[%emt 0:02:57]} 42. Nd6 {[%emt 0:06:40] A dynamic duo of knights.} Ref8 {[%emt 0:00:29]} 43. Kg2 {[%emt 0:09:48] And now Nf6+ would win. White is much more active.} Ng6 $2 {[%emt 0:09:11] A mistake that costs the game.} (43... Rg6 $16 {was worth a try.} 44. Ra7 Kh8) 44. Ra7 $18 {[%emt 0:08:12][%cal Rd6f7]} Be7 $2 {[%emt 0:10:12]} (44... Bd8 45. Rxf7+ Rxf7 46. Qxf7+ Qxf7 47. Nxf7 h5) 45. Qf5 {[%emt 0:05:27] White is clearly winning.} Rg7 {[%emt 0:06:59]} 46. Rh1 {[%emt 0:00:32]} Bg5 {[%emt 0:01:24]} 47. Qxg5 {[%emt 0:00:33] Weighted Error Value: White=0.24 (precise) /Black=0.43} 1-0

[Event "ETCC Open 2023"]
[Site "Budva"]
[Date "2023.11.11"]
[Round "1.54"]
[White "Mehmeti, Dritan"]
[Black "Martinovic, Sasa"]
[Result "0-1"]
[ECO "D77"]
[WhiteElo "2377"]
[BlackElo "2542"]
[Annotator "RC"]
[PlyCount "88"]
[EventDate "2023.11.10"]
[EventType "team-tourn"]
[EventCountry "MNE"]
[SourceTitle "playchess.com"]
[Source "ChessBase"]
[SourceQuality "1"]
[WhiteTeam "Albania"]
[BlackTeam "Croatia"]
[WhiteTeamCountry "ALB"]
[BlackTeamCountry "CRO"]
[TimeControl "40/5400+30:1800+30"]

1. d4 {[%emt 0:00:06]} Nf6 {[%emt 0:00:04]} 2. Nf3 {[%emt 0:00:32]} g6 {[%emt 0:00:05]} 3. g3 {[%emt 0:03:55]} Bg7 {[%emt 0:00:10]} 4. Bg2 {[%emt 0:00:10]} O-O {[%emt 0:00:09]} 5. O-O {[%emt 0:00:47]} d5 {[%emt 0:00:18]} 6. c4 {[%emt 0:04:59]} dxc4 {[%emt 0:00:14]} 7. Na3 {[%emt 0:12:58]} c3 {[%emt 0:00:06]} 8. bxc3 {[%emt 0:00:19]} c5 {[%emt 0:00:04]} 9. Nc4 {[%emt 0:02:56]} Nc6 {[%emt 0:02:05]} 10. Ba3 {[%emt 0:08:26]} cxd4 {[%emt 0:26:29]} 11. cxd4 {[%emt 0:00:58]} Be6 {[%emt 0:01:36]} 12. Rc1 {[%emt 0:05:22]} Rc8 {[%emt 0:07:34]} 13. Qd3 {[%emt 0:07:34]} a5 {[%emt 0:14:00]} 14. e4 {[%emt 0:15:38]} b5 {[%emt 0:08:03]} 15. Ncd2 {[%emt 0:05:17]} b4 {[%emt 0:03:36]} 16. Bb2 {[%emt 0:03:37]} Nd7 {[%emt 0:07:53]} 17. Qb1 {[%emt 0:05:06]} Bg4 {[%emt 0:02:34]} 18. d5 {[%emt 0:04:39]} Nce5 {[%emt 0:01:08]} 19. Nxe5 {[%emt 0:05:04]} Nxe5 {[%emt 0:00:05]} 20. Rxc8 {[%emt 0:05:47]} Bxc8 {[%emt 0:00:27]} 21. Qa1 {[%emt 0:00:31]} f6 {[%emt 0:02:14]} 22. f4 {[%emt 0:02:17]} Nf7 {[%emt 0:01:48]} 23. h4 {[%emt 0:02:30]} e6 {[%emt 0:02:23]} 24. Rd1 {[%emt 0:01:15]} exd5 {[%emt 0:00:11]} 25. Nb3 {[%emt 0:01:03]} Qe7 {[%emt 0:07:51]} 26. Rxd5 {[%emt 0:00:35]} Bb7 {[%emt 0:02:54]} 27. Rxa5 {[%emt 0:00:24]} Bxe4 {[%emt 0:01:01]} 28. Qe1 {[%emt 0:00:35]} f5 {[%emt 0:00:21]} 29. Bxg7 {[%emt 0:00:11]} Kxg7 {[%emt 0:00:01]} 30. Nc5 {[%emt 0:01:22]} Re8 {[%emt 0:01:40]} 31. Bxe4 {[%emt 0:00:28]} fxe4 {[%emt 0:00:52]} 32. Qxb4 {[%emt 0:00:05]} e3 {[%emt 0:00:32]} 33. Qc3+ {[%emt 0:00:19]} Kg8 {[%emt 0:00:50]} 34. Nd3 {[%emt 0:00:08]} Qd7 {[%emt 0:02:46]} 35. Ne1 {[%emt 0:01:34]} Qh3 {[%emt 0:00:24]} 36. Ng2 {[%emt 0:00:27]} Qxg3 {[%emt 0:00:53]} 37. Qe1 {[%emt 0:00:04]} Qg4 {[%emt 0:01:41]} 38. h5 {[%emt 0:00:27]} e2 {[%emt 0:01:26]} 39. hxg6 {[%emt 0:00:18]} hxg6 {[%emt 0:00:05]} 40. Rd5 {[%emt 0:00:44]} Qf3 {[%emt 0:02:47]} 41. Rd2 {[%emt 0:12:29]} g5 {[%emt 0:11:35]} 42. Rd4 {[%emt 0:08:42]} Re6 {[%emt 0:01:16]} 43. a4 {[%emt 0:03:31]} Rh6 {[%emt 0:01:21]} 44. Rd2 {[%emt 0:01:23]} Qf1+ {[%emt 0:00:28]} 0-1

[Event "ETCC Open 2023"]
[Site "Budva"]
[Date "2023.11.11"]
[Round "1.55"]
[White "Livaic, Leon"]
[Black "Ashiku, Franc"]
[Result "1/2-1/2"]
[ECO "D00"]
[WhiteElo "2553"]
[BlackElo "2396"]
[Annotator "RC"]
[PlyCount "142"]
[EventDate "2023.11.10"]
[EventType "team-tourn"]
[EventCountry "MNE"]
[SourceTitle "playchess.com"]
[Source "ChessBase"]
[SourceQuality "1"]
[WhiteTeam "Croatia"]
[BlackTeam "Albania"]
[WhiteTeamCountry "CRO"]
[BlackTeamCountry "ALB"]
[TimeControl "40/5400+30:1800+30"]

1. d4 {[%emt 0:00:08]} d5 {[%emt 0:00:07]} 2. Bf4 {[%emt 0:02:50]} e6 {[%emt 0:00:30]} 3. e3 {[%emt 0:01:53]} c5 {[%emt 0:00:06]} 4. Nc3 {[%emt 0:03:15]} a6 {[%emt 0:07:37]} 5. Nf3 {[%emt 0:00:54]} c4 {[%emt 0:04:44]} 6. e4 {[%emt 0:06:04]} Bb4 {[%emt 0:02:58]} 7. e5 {[%emt 0:02:04]} Ne7 {[%emt 0:03:10]} 8. Bd2 {[%emt 0:14:12]} Bd7 {[%emt 0:09:44]} 9. Ne2 {[%emt 0:00:35]} Bxd2+ {[%emt 0:07:42]} 10. Qxd2 {[%emt 0:00:12]} Nbc6 {[%emt 0:06:37]} 11. Ng3 {[%emt 0:04:54]} O-O {[%emt 0:03:32]} 12. Be2 {[%emt 0:08:26]} f6 {[%emt 0:06:39]} 13. exf6 {[%emt 0:00:29]} gxf6 {[%emt 0:00:10]} 14. O-O {[%emt 0:03:05]} Nc8 {[%emt 0:07:41]} 15. c3 {[%emt 0:06:11]} Nd6 {[%emt 0:01:11]} 16. Bd1 {[%emt 0:01:22]} Qe7 {[%emt 0:01:01]} 17. Bc2 {[%emt 0:01:35]} Rad8 {[%emt 0:02:54]} 18. Rfe1 {[%emt 0:01:50]} Qf7 {[%emt 0:04:00]} 19. Re2 {[%emt 0:05:12]} Kh8 {[%emt 0:00:22]} 20. Rae1 {[%emt 0:01:01]} Bc8 {[%emt 0:01:01]} 21. Kh1 {[%emt 0:04:13]} b5 {[%emt 0:00:42]} 22. Qh6 {[%emt 0:02:02]} Qg7 {[%emt 0:04:15]} 23. Qxg7+ {[%emt 0:07:24]} Kxg7 {[%emt 0:00:05]} 24. Nh5+ {[%emt 0:00:03]} Kh6 {[%emt 0:09:53]} 25. Nf4 {[%emt 0:00:39]} e5 {[%emt 0:00:21]} 26. dxe5 {[%emt 0:01:08]} fxe5 {[%emt 0:00:39]} 27. Nxd5 {[%emt 0:00:38]} e4 {[%emt 0:01:23]} 28. Nd2 {[%emt 0:02:58]} Bf5 {[%emt 0:06:09]} 29. Ne3 {[%emt 0:01:47]} Bg6 {[%emt 0:00:21]} 30. f3 {[%emt 0:02:55]} Ne5 {[%emt 0:01:26]} 31. Bxe4 {[%emt 0:09:58]} Nxe4 {[%emt 0:00:28]} 32. Nxe4 {[%emt 0:00:05]} Bxe4 {[%emt 0:00:28]} 33. fxe4 {[%emt 0:00:05]} Nd3 {[%emt 0:00:32]} 34. Rb1 {[%emt 0:01:29]} Kg5 {[%emt 0:00:33]} 35. Nf5 {[%emt 0:03:29]} Rde8 {[%emt 0:04:40]} 36. Nd4 {[%emt 0:00:33]} Rf2 {[%emt 0:01:50]} 37. Rxf2 {[%emt 0:01:06]} Nxf2+ {[%emt 0:00:06]} 38. Kg1 {[%emt 0:00:02]} Nd3 {[%emt 0:00:13]} 39. e5 {[%emt 0:00:54]} Kf4 {[%emt 0:00:41]} 40. e6 {[%emt 0:00:29]} Ke3 {[%emt 0:01:09]} 41. Rf1 {[%emt 0:32:17]} Kd2 {[%emt 0:32:42]} 42. Rf7 {[%emt 0:00:00]} Nxb2 {[%emt 0:00:00]} 43. e7 {[%emt 0:00:00]} b4 {[%emt 0:00:00]} 44. cxb4 {[%emt 0:00:00]} c3 {[%emt 0:00:00]} 45. Rxh7 {[%emt 0:00:00]} Nd3 {[%emt 0:00:00]} 46. g4 {[%emt 0:00:00]} Nxb4 {[%emt 0:00:00]} 47. g5 {[%emt 0:00:00]} Nxa2 {[%emt 0:00:00]} 48. Rh6 {[%emt 0:00:00]} Rxe7 {[%emt 0:01:45]} 49. Rxa6 {[%emt 0:00:00]} Nc1 {[%emt 0:01:02]} 50. Kg2 {[%emt 0:01:23]} Kd3 {[%emt 0:01:47]} 51. Rd6 {[%emt 0:01:53]} Kc4 {[%emt 0:00:27]} 52. g6 {[%emt 0:01:58]} Nd3 {[%emt 0:00:33]} 53. Kg3 {[%emt 0:00:18]} Re3+ {[%emt 0:00:14]} 54. Kg4 {[%emt 0:00:23]} Re4+ {[%emt 0:00:20]} 55. Kf5 {[%emt 0:00:08]} Rf4+ {[%emt 0:00:46]} 56. Kg5 {[%emt 0:00:45]} Rxd4 {[%emt 0:00:16]} 57. Rxd4+ {[%emt 0:00:04]} Kxd4 {[%emt 0:00:03]} 58. g7 {[%emt 0:00:03]} c2 {[%emt 0:00:10]} 59. g8=Q {[%emt 0:00:04]} c1=Q+ {[%emt 0:00:12]} 60. Kf6 {[%emt 0:00:55]} Qf4+ {[%emt 0:00:20]} 61. Kg7 {[%emt 0:00:56]} Qxh2 {[%emt 0:00:31]} 62. Qd8+ {[%emt 0:00:13]} Ke4 {[%emt 0:00:22]} 63. Qa8+ {[%emt 0:00:14]} Kf4 {[%emt 0:01:00]} 64. Qa4+ {[%emt 0:00:41]} Ke3 {[%emt 0:00:28]} 65. Qa7+ {[%emt 0:00:07]} Ke4 {[%emt 0:00:37]} 66. Qa8+ {[%emt 0:00:06]} Kf4 {[%emt 0:00:20]} 67. Qa4+ {[%emt 0:00:03]} Kg5 {[%emt 0:00:21]} 68. Qa5+ {[%emt 0:00:16]} Ne5 {[%emt 0:00:19]} 69. Qd8+ {[%emt 0:00:09]} Kf4 {[%emt 0:00:46]} 70. Qf8+ {[%emt 0:00:16]} Ke4 {[%emt 0:00:47]} 71. Qa8+ {[%emt 0:00:03]} Kf4 {[%emt 0:00:57]} 1/2-1/2

[Event "ETCC Open 2023"]
[Site "Budva"]
[Date "2023.11.11"]
[Round "1.56"]
[White "Veleshnja, Zino"]
[Black "Bosiocic, Marin"]
[Result "1-0"]
[ECO "E20"]
[WhiteElo "2269"]
[BlackElo "2537"]
[Annotator "RC"]
[PlyCount "93"]
[EventDate "2023.11.10"]
[EventType "team-tourn"]
[EventCountry "MNE"]
[SourceTitle "playchess.com"]
[Source "ChessBase"]
[SourceQuality "1"]
[WhiteTeam "Albania"]
[BlackTeam "Croatia"]
[WhiteTeamCountry "ALB"]
[BlackTeamCountry "CRO"]
[TimeControl "40/5400+30:1800+30"]

1. d4 {[%emt 0:00:04]} Nf6 {[%emt 0:00:32]} 2. c4 {[%emt 0:00:07]} e6 {[%emt 0:00:25]} 3. Nc3 {[%emt 0:00:08]} Bb4 {[%emt 0:00:19]} 4. g3 {[%emt 0:00:19]} O-O {[%emt 0:02:19]} 5. Bg2 {[%emt 0:00:07]} d6 {[%emt 0:03:01]} 6. Nf3 {[%emt 0:02:32]} Bxc3+ {[%emt 0:02:44]} 7. bxc3 {[%emt 0:00:17]} Qe7 {[%emt 0:05:34]} 8. O-O {[%emt 0:01:44]} e5 {[%emt 1:19:36]} 9. Bg5 {[%emt 0:04:14]} Nbd7 {[%emt 0:00:00]} 10. Nh4 {[%emt 0:13:23]} e4 {[%emt 0:00:00]} 11. f3 {[%emt 0:08:25]} Qe6 {[%emt 0:00:00]} 12. Bxf6 {[%emt 0:24:21]} Nxf6 {[%emt 0:00:00]} 13. fxe4 {[%emt 0:01:31]} Nxe4 {[%emt 0:00:00]} 14. Qd3 {[%emt 0:04:38]} Re8 {[%emt 0:00:00]} 15. Nf5 {[%emt 0:02:30]} c6 {[%emt 0:00:00]} 16. Bxe4 {[%emt 0:06:52]} Qxe4 {[%emt 0:00:00]} 17. Qxe4 {[%emt 0:00:45]} Rxe4 {[%emt 0:00:00]} 18. Nxd6 {[%emt 0:00:44]} Rxe2 {[%emt 0:00:00]} 19. Rae1 {[%emt 0:03:31]} Rxe1 {[%emt 0:00:00]} 20. Rxe1 {[%emt 0:00:04]} Be6 {[%emt 0:00:00]} 21. Nxb7 {[%emt 0:01:27]} Bxc4 {[%emt 0:00:00]} 22. Na5 {[%emt 0:00:37]} Bd5 {[%emt 0:00:00]} 23. c4 {[%emt 0:03:21]} Be6 {[%emt 0:00:00]} 24. Nxc6 {[%emt 0:02:15]} Bxc4 {[%emt 0:00:00]} 25. d5 {[%emt 0:01:25]} Bxa2 {[%emt 0:00:00]} 26. d6 {[%emt 0:00:46]} Be6 {[%emt 0:00:00]} 27. Rxe6 {[%emt 0:01:00]} fxe6 {[%emt 0:00:00]} 28. d7 {[%emt 0:00:14]} Kf7 {[%emt 0:00:00]} 29. d8=Q {[%emt 0:00:50]} Rxd8 {[%emt 0:00:00]} 30. Nxd8+ {[%emt 0:00:06]} Kf6 {[%emt 0:00:00]} 31. Nc6 {[%emt 0:00:21]} a6 {[%emt 0:00:00]} 32. Kf2 {[%emt 0:00:33]} h5 {[%emt 0:00:00]} 33. h3 {[%emt 0:01:19]} Kf5 {[%emt 0:01:26]} 34. Ke3 {[%emt 0:02:53]} e5 {[%emt 0:01:07]} 35. Na5 {[%emt 0:01:34]} Ke6 {[%emt 0:03:09]} 36. Ke4 {[%emt 0:00:42]} Kd6 {[%emt 0:00:09]} 37. Nb3 {[%emt 0:02:44]} Kc6 {[%emt 0:02:19]} 38. Kxe5 {[%emt 0:03:29]} Kb5 {[%emt 0:00:17]} 39. Kd4 {[%emt 0:02:37]} Kb4 {[%emt 0:00:41]} 40. Nc5 {[%emt 0:01:00]} a5 {[%emt 0:00:14]} 41. g4 {[%emt 0:34:23]} hxg4 {[%emt 0:31:33]} 42. hxg4 {[%emt 0:00:03]} g5 {[%emt 0:01:01]} 43. Kd5 {[%emt 0:00:00]} Kc3 {[%emt 0:00:00]} 44. Ne4+ {[%emt 0:00:00]} Kb4 {[%emt 0:00:00]} 45. Kd4 {[%emt 0:00:00]} a4 {[%emt 0:00:00]} 46. Kd3 {[%emt 0:00:00]} Kb3 {[%emt 0:00:00]} 47. Nc5+ {[%emt 0:00:00]} 1-0